[Event "Late-Titled-Tuesday-Blitz-February-27-2024"]
[Site "Chess.com"]
[Date "2024.02.27"]
[Round "3"]
[White "PositionalPanther"]
[Black "Alex_Sahakyan2006"]
[Result "0-1"]
[WhiteElo "2502"]
[BlackElo "2807"]
[TimeControl "180+1"]
[EndTime "14:29:02 PST"]
[Termination "Alex_Sahakyan2006 won by resignation"]

1. Nf3 {[%clk 0:03:00.9]} 1... d5 {[%clk 0:02:58.7]} 2. g3 {[%clk 0:02:59.8]}
2... Bg4 {[%clk 0:02:57.7]} 3. Bg2 {[%clk 0:02:59.7]} 3... Nd7 {[%clk
0:02:57.6]} 4. d4 {[%clk 0:02:58.3]} 4... e6 {[%clk 0:02:53.6]} 5. O-O {[%clk
0:02:57.8]} 5... Ngf6 {[%clk 0:02:52.3]} 6. h3 {[%clk 0:02:57]} 6... Bf5 {[%clk
0:02:51.1]} 7. c4 {[%clk 0:02:47.4]} 7... c6 {[%clk 0:02:47.5]} 8. cxd5 {[%clk
0:02:43.9]} 8... exd5 {[%clk 0:02:44.7]} 9. Qb3 {[%clk 0:02:35.2]} 9... Qb6
{[%clk 0:02:42.8]} 10. Nc3 {[%clk 0:02:32.6]} 10... Qxb3 {[%clk 0:02:30.6]} 11.
axb3 {[%clk 0:02:33.5]} 11... Bc2 {[%clk 0:02:31]} 12. Bf4 {[%clk 0:02:02.1]}
12... Bxb3 {[%clk 0:02:25.9]} 13. Nd2 {[%clk 0:02:02.1]} 13... Bc2 {[%clk
0:02:24.2]} 14. e4 {[%clk 0:02:02.3]} 14... dxe4 {[%clk 0:02:14.9]} 15. Ndxe4
{[%clk 0:01:48.9]} 15... Nxe4 {[%clk 0:02:08.3]} 16. Nxe4 {[%clk 0:01:23.1]}
16... Bxe4 {[%clk 0:02:04.6]} 17. Bxe4 {[%clk 0:01:24]} 17... Nf6 {[%clk
0:02:05.1]} 18. Bf5 {[%clk 0:01:06.2]} 18... Bb4 {[%clk 0:02:03.5]} 19. Be5
{[%clk 0:00:53.4]} 19... O-O {[%clk 0:01:55.3]} 20. Bxf6 {[%clk 0:00:53.4]}
20... gxf6 {[%clk 0:01:56.2]} 21. Be4 {[%clk 0:00:49.2]} 21... Rfd8 {[%clk
0:01:44.5]} 22. Rfd1 {[%clk 0:00:47.5]} 22... Bd6 {[%clk 0:01:15.1]} 23. d5
{[%clk 0:00:45.1]} 23... c5 {[%clk 0:01:13.7]} 24. f4 {[%clk 0:00:41.4]} 24...
a6 {[%clk 0:01:05.7]} 25. Kf2 {[%clk 0:00:38]} 25... c4 {[%clk 0:01:03.6]} 26.
Kf3 {[%clk 0:00:37]} 26... h5 {[%clk 0:00:50.8]} 27. g4 {[%clk 0:00:36.9]} 27...
hxg4+ {[%clk 0:00:38.4]} 28. hxg4 {[%clk 0:00:37.8]} 28... Kg7 {[%clk
0:00:34.3]} 29. Rh1 {[%clk 0:00:37.9]} 29... Rh8 {[%clk 0:00:34]} 30. Bf5 {[%clk
0:00:31.6]} 30... Bc5 {[%clk 0:00:31.6]} 31. Rad1 {[%clk 0:00:28]} 31... Rxh1
{[%clk 0:00:20.2]} 32. Rxh1 {[%clk 0:00:28.9]} 32... Rd8 {[%clk 0:00:19.4]} 33.
Rd1 {[%clk 0:00:28.4]} 33... Rd6 {[%clk 0:00:19.8]} 34. Bc8 {[%clk 0:00:26.6]}
34... Rb6 {[%clk 0:00:19.8]} 35. Rd2 {[%clk 0:00:22.6]} 35... Bd6 {[%clk
0:00:16.7]} 36. Ke4 {[%clk 0:00:20.5]} 36... Rb4 {[%clk 0:00:16.1]} 37. Kf5
{[%clk 0:00:20.3]} 37... c3 {[%clk 0:00:16.2]} 38. Rf2 {[%clk 0:00:10.7]} 38...
cxb2 {[%clk 0:00:16.4]} 39. g5 {[%clk 0:00:11.3]} 39... b1=Q+ {[%clk 0:00:16.4]}
40. Kg4 {[%clk 0:00:11]} 40... Qg1+ {[%clk 0:00:16.2]} 41. Kf5 {[%clk
0:00:10.6]} 41... Rxf4+ {[%clk 0:00:16.4]} 42. Rxf4 {[%clk 0:00:10.5]} 42...
Qxg5+ {[%clk 0:00:17.3]} 43. Ke4 {[%clk 0:00:10.5]} 43... Qxf4+ {[%clk
0:00:18.2]} 44. Kd3 {[%clk 0:00:10.6]} 44... Qe5 {[%clk 0:00:19.1]} 0-1

[Event "Late-Titled-Tuesday-Blitz-February-27-2024"]
[Site "Chess.com"]
[Date "2024.02.27"]
[Round "3"]
[White "katharinareinecke"]
[Black "Laico"]
[Result "0-1"]
[WhiteElo "2008"]
[BlackElo "2379"]
[TimeControl "180+1"]
[EndTime "14:29:02 PST"]
[Termination "Laico won on time"]

1. e4 {[%clk 0:03:00.9]} 1... e6 {[%clk 0:02:59.6]} 2. d4 {[%clk 0:02:58.7]}
2... d5 {[%clk 0:02:51.5]} 3. e5 {[%clk 0:02:57.6]} 3... c5 {[%clk 0:02:51]} 4.
c3 {[%clk 0:02:55.3]} 4... Nc6 {[%clk 0:02:51.9]} 5. Nf3 {[%clk 0:02:55]} 5...
Bd7 {[%clk 0:02:47]} 6. Bd3 {[%clk 0:02:54.8]} 6... Qb6 {[%clk 0:02:33.8]} 7.
dxc5 {[%clk 0:02:43.5]} 7... Bxc5 {[%clk 0:02:30.2]} 8. O-O {[%clk 0:02:33.7]}
8... a5 {[%clk 0:02:29.3]} 9. Nbd2 {[%clk 0:02:22]} 9... a4 {[%clk 0:02:28.4]}
10. c4 {[%clk 0:02:19.9]} 10... Nge7 {[%clk 0:02:27.1]} 11. cxd5 {[%clk
0:02:18.5]} 11... exd5 {[%clk 0:02:28]} 12. b3 {[%clk 0:01:51.1]} 12... Nb4
{[%clk 0:02:13]} 13. Bb1 {[%clk 0:01:41]} 13... Bd4 {[%clk 0:02:09.5]} 14. Nxd4
{[%clk 0:01:34.9]} 14... Qxd4 {[%clk 0:02:10.4]} 15. Nc4 {[%clk 0:01:08.7]}
15... Qxa1 {[%clk 0:01:19.2]} 16. Bb2 {[%clk 0:01:07.6]} 16... dxc4 {[%clk
0:01:13.4]} 17. Bxa1 {[%clk 0:01:05.5]} 17... axb3 {[%clk 0:01:12.6]} 18. axb3
{[%clk 0:00:47.2]} 18... Rxa1 {[%clk 0:01:11.5]} 19. bxc4 {[%clk 0:00:45.9]}
19... Bf5 {[%clk 0:00:39.3]} 20. Qb3 {[%clk 0:00:41.6]} 20... Rxb1 {[%clk
0:00:39]} 21. Rxb1 {[%clk 0:00:39.3]} 21... Bxb1 {[%clk 0:00:39.9]} 22. Qxb4
{[%clk 0:00:35.7]} 22... Be4 {[%clk 0:00:39.2]} 23. c5 {[%clk 0:00:29.1]} 23...
Bc6 {[%clk 0:00:36.2]} 24. Qd4 {[%clk 0:00:19.8]} 24... O-O {[%clk 0:00:35.5]}
25. Qd6 {[%clk 0:00:19.3]} 25... Ng6 {[%clk 0:00:34.4]} 26. e6 {[%clk
0:00:18.6]} 26... fxe6 {[%clk 0:00:29.7]} 27. Qxe6+ {[%clk 0:00:18.8]} 27... Kh8
{[%clk 0:00:29.8]} 28. h3 {[%clk 0:00:17.5]} 28... Nf4 {[%clk 0:00:22.4]} 29.
Qe7 {[%clk 0:00:14.4]} 29... Kg8 {[%clk 0:00:22.4]} 30. Kh2 {[%clk 0:00:10.9]}
30... Bxg2 {[%clk 0:00:20.5]} 31. Kg3 {[%clk 0:00:10.6]} 31... Bxh3 {[%clk
0:00:19.9]} 32. Qd6 {[%clk 0:00:07.5]} 32... Bg2 {[%clk 0:00:19.3]} 33. f3
{[%clk 0:00:06.6]} 33... h5 {[%clk 0:00:12]} 34. c6 {[%clk 0:00:06]} 34... bxc6
{[%clk 0:00:11]} 35. Qxc6 {[%clk 0:00:06.2]} 35... h4+ {[%clk 0:00:11.2]} 36.
Kh2 {[%clk 0:00:04.1]} 36... h3 {[%clk 0:00:11.2]} 37. Qc4+ {[%clk 0:00:03]}
37... Kh7 {[%clk 0:00:10.7]} 38. Kg1 {[%clk 0:00:02]} 38... Rf6 {[%clk
0:00:10.6]} 39. Qc2+ {[%clk 0:00:01.4]} 39... Kh6 {[%clk 0:00:10.5]} 0-1

[Event "Late-Titled-Tuesday-Blitz-February-27-2024"]
[Site "Chess.com"]
[Date "2024.02.27"]
[Round "3"]
[White "rcmz"]
[Black "Road2GM3000"]
[Result "1-0"]
[WhiteElo "2201"]
[BlackElo "2408"]
[TimeControl "180+1"]
[EndTime "14:29:09 PST"]
[Termination "rcmz won by resignation"]

1. b4 {[%clk 0:03:00.9]} 1... e6 {[%clk 0:02:59.3]} 2. Bb2 {[%clk 0:03:00.1]}
2... Nf6 {[%clk 0:02:59.2]} 3. a3 {[%clk 0:02:59.4]} 3... a5 {[%clk 0:02:58.4]}
4. b5 {[%clk 0:02:59]} 4... d5 {[%clk 0:02:56.2]} 5. e3 {[%clk 0:02:57.4]} 5...
c5 {[%clk 0:02:56]} 6. c4 {[%clk 0:02:56.6]} 6... b6 {[%clk 0:02:56.1]} 7. f4
{[%clk 0:02:54.6]} 7... Bb7 {[%clk 0:02:56.3]} 8. Nf3 {[%clk 0:02:54.8]} 8...
Nbd7 {[%clk 0:02:56.6]} 9. Be2 {[%clk 0:02:54.7]} 9... Be7 {[%clk 0:02:55.9]}
10. O-O {[%clk 0:02:54.6]} 10... O-O {[%clk 0:02:56.5]} 11. Qc2 {[%clk
0:02:54.5]} 11... Qc7 {[%clk 0:02:56.4]} 12. Ne5 {[%clk 0:02:50.2]} 12... Bd6
{[%clk 0:02:56.1]} 13. Nxd7 {[%clk 0:02:49.7]} 13... Nxd7 {[%clk 0:02:56.1]} 14.
Bf3 {[%clk 0:02:40.2]} 14... dxc4 {[%clk 0:02:54]} 15. Qxc4 {[%clk 0:02:39]}
15... e5 {[%clk 0:02:51.4]} 16. Qc3 {[%clk 0:02:38.6]} 16... f6 {[%clk
0:02:45.6]} 17. f5 {[%clk 0:02:38]} 17... e4 {[%clk 0:02:44.7]} 18. Be2 {[%clk
0:02:35.8]} 18... Bxh2+ {[%clk 0:02:40]} 19. Kh1 {[%clk 0:02:34.7]} 19... Be5
{[%clk 0:02:39.3]} 20. Bc4+ {[%clk 0:02:29]} 20... Kh8 {[%clk 0:02:39.7]} 21.
Qc2 {[%clk 0:02:28.8]} 21... Bxb2 {[%clk 0:02:39.2]} 22. Qxb2 {[%clk 0:02:28.5]}
22... Ne5 {[%clk 0:02:40.1]} 23. Be6 {[%clk 0:02:27.2]} 23... Ng4 {[%clk
0:02:39.5]} 24. Rf4 {[%clk 0:02:25.8]} 24... Qe5 {[%clk 0:02:27.7]} 25. Nc3
{[%clk 0:02:20.8]} 25... Nh6 {[%clk 0:02:25.7]} 26. Raf1 {[%clk 0:02:12.3]}
26... Rad8 {[%clk 0:02:25.6]} 27. Qc2 {[%clk 0:02:10.2]} 27... Rd3 {[%clk
0:02:23.4]} 28. Bc4 {[%clk 0:02:04.1]} 28... Rd7 {[%clk 0:02:15.3]} 29. Be6
{[%clk 0:02:02.5]} 29... Rd6 {[%clk 0:02:13.2]} 30. Nxe4 {[%clk 0:01:54.7]}
30... Bxe4 {[%clk 0:02:12.9]} 31. Qxe4 {[%clk 0:01:53.9]} 31... Qxe4 {[%clk
0:02:07.9]} 32. Rxe4 {[%clk 0:01:52.8]} 32... Rxd2 {[%clk 0:02:08.6]} 33. g4
{[%clk 0:01:44.1]} 33... Rdd8 {[%clk 0:01:58.9]} 34. Kg2 {[%clk 0:01:38.7]}
34... Nf7 {[%clk 0:01:58.8]} 35. Bxf7 {[%clk 0:01:36.4]} 35... Rxf7 {[%clk
0:01:59.2]} 36. Re6 {[%clk 0:01:36.6]} 36... Rb7 {[%clk 0:01:55.8]} 37. Kf3
{[%clk 0:01:35.2]} 37... Kg8 {[%clk 0:01:55.4]} 38. Ke2 {[%clk 0:01:27.5]} 38...
Kf7 {[%clk 0:01:55.6]} 39. Rf4 {[%clk 0:01:27.1]} 39... Re8 {[%clk 0:01:54.3]}
40. Rd6 {[%clk 0:01:24.6]} 40... Rbe7 {[%clk 0:01:54.3]} 41. Rf3 {[%clk
0:01:23.5]} 41... Rb8 {[%clk 0:01:53.2]} 42. Rf4 {[%clk 0:01:22.1]} 42... Rbb7
{[%clk 0:01:41.4]} 43. a4 {[%clk 0:01:20.2]} 43... g6 {[%clk 0:01:36.2]} 44.
fxg6+ {[%clk 0:01:17.8]} 44... Kxg6 {[%clk 0:01:37]} 45. Rdxf6+ {[%clk
0:01:16.1]} 45... Kg7 {[%clk 0:01:37.4]} 46. g5 {[%clk 0:01:15.2]} 46... Re5
{[%clk 0:01:35.5]} 47. R6f5 {[%clk 0:01:10.9]} 47... Rbe7 {[%clk 0:01:29.1]} 48.
Rf3 {[%clk 0:01:06.2]} 48... Rxf5 {[%clk 0:01:28]} 49. Rxf5 {[%clk 0:01:05.8]}
49... Re4 {[%clk 0:01:28.7]} 50. Rf6 {[%clk 0:01:04.7]} 50... Rxa4 {[%clk
0:01:27.4]} 51. Rxb6 {[%clk 0:01:04.7]} 51... c4 {[%clk 0:01:23.2]} 52. Kd2
{[%clk 0:01:01.5]} 52... Ra3 {[%clk 0:01:21.7]} 53. e4 {[%clk 0:00:57.2]} 53...
Rg3 {[%clk 0:01:17.8]} 54. Rc6 {[%clk 0:00:49.6]} 54... Rxg5 {[%clk 0:01:17.9]}
55. b6 {[%clk 0:00:49.2]} 55... Rb5 {[%clk 0:01:17.3]} 56. Kc3 {[%clk
0:00:49.4]} 56... Rb4 {[%clk 0:01:17]} 57. Rc7+ {[%clk 0:00:49.4]} 57... Kg6
{[%clk 0:01:16.6]} 58. b7 {[%clk 0:00:49.7]} 58... h5 {[%clk 0:01:16]} 59. e5
{[%clk 0:00:40.7]} 59... Kf5 {[%clk 0:01:13.1]} 60. Rh7 {[%clk 0:00:36.5]} 60...
Kg6 {[%clk 0:00:54.3]} 61. Rc7 {[%clk 0:00:34.9]} 61... Kf5 {[%clk 0:00:30.2]}
62. Rh7 {[%clk 0:00:33.8]} 62... Rxb7 {[%clk 0:00:25.1]} 63. Rxb7 {[%clk
0:00:31.6]} 63... Kxe5 {[%clk 0:00:25]} 64. Rb5+ {[%clk 0:00:30.3]} 64... Kf4
{[%clk 0:00:24.9]} 65. Rxh5 {[%clk 0:00:30.2]} 1-0

[Event "Late-Titled-Tuesday-Blitz-February-27-2024"]
[Site "Chess.com"]
[Date "2024.02.27"]
[Round "3"]
[White "manitodeplomo"]
[Black "ArturoCaceres"]
[Result "1-0"]
[WhiteElo "2669"]
[BlackElo "2470"]
[TimeControl "180+1"]
[EndTime "14:29:13 PST"]
[Termination "manitodeplomo won by checkmate"]

1. d4 {[%clk 0:02:58.1]} 1... b6 {[%clk 0:02:59.4]} 2. e4 {[%clk 0:02:56.2]}
2... Bb7 {[%clk 0:03:00]} 3. Bd3 {[%clk 0:02:56.6]} 3... e6 {[%clk 0:03:00.1]}
4. Nf3 {[%clk 0:02:56.6]} 4... d5 {[%clk 0:02:59.4]} 5. e5 {[%clk 0:02:56]} 5...
c5 {[%clk 0:02:59.2]} 6. c3 {[%clk 0:02:52.3]} 6... Qd7 {[%clk 0:02:58]} 7. Qe2
{[%clk 0:02:45.6]} 7... a5 {[%clk 0:02:52.6]} 8. O-O {[%clk 0:02:44.3]} 8... Ba6
{[%clk 0:02:50.4]} 9. c4 {[%clk 0:02:41.6]} 9... Nc6 {[%clk 0:02:43.8]} 10. a3
{[%clk 0:02:05.6]} 10... Nh6 {[%clk 0:02:36.7]} 11. Bxh6 {[%clk 0:01:57.5]}
11... gxh6 {[%clk 0:02:37.1]} 12. cxd5 {[%clk 0:01:56.7]} 12... Bxd3 {[%clk
0:02:34.4]} 13. Qxd3 {[%clk 0:01:55.9]} 13... exd5 {[%clk 0:02:21.6]} 14. Nc3
{[%clk 0:01:55.7]} 14... c4 {[%clk 0:02:17.5]} 15. Qe3 {[%clk 0:01:47.9]} 15...
Rg8 {[%clk 0:02:14.7]} 16. Nd2 {[%clk 0:01:32]} 16... Rg4 {[%clk 0:01:59.4]} 17.
Nf3 {[%clk 0:01:26.9]} 17... O-O-O {[%clk 0:01:55.2]} 18. h3 {[%clk 0:01:25]}
18... Rg8 {[%clk 0:01:52.3]} 19. Kh1 {[%clk 0:01:24.5]} 19... Kb7 {[%clk
0:01:52]} 20. b3 {[%clk 0:01:21.6]} 20... cxb3 {[%clk 0:01:40.3]} 21. Rfb1
{[%clk 0:01:19.4]} 21... a4 {[%clk 0:01:35.3]} 22. Nxa4 {[%clk 0:01:17.6]} 22...
Na5 {[%clk 0:01:35.5]} 23. Nc3 {[%clk 0:01:10.6]} 23... Nc4 {[%clk 0:01:35]} 24.
Qe2 {[%clk 0:01:03.9]} 24... b2 {[%clk 0:01:28.3]} 25. Ra2 {[%clk 0:01:03.9]}
25... Bxa3 {[%clk 0:01:22.4]} 26. Nd2 {[%clk 0:00:55.2]} 26... Nxd2 {[%clk
0:00:39.1]} 27. Qxd2 {[%clk 0:00:48.6]} 27... Ra8 {[%clk 0:00:38.4]} 28. Qc2
{[%clk 0:00:45.6]} 28... Rgc8 {[%clk 0:00:24.2]} 29. Qb3 {[%clk 0:00:44.4]}
29... Qc6 {[%clk 0:00:24.2]} 30. Nxd5 {[%clk 0:00:37.1]} 30... Qc1+ {[%clk
0:00:14.3]} 31. Kh2 {[%clk 0:00:36.3]} 31... Rc6 {[%clk 0:00:14.4]} 32. Ne3
{[%clk 0:00:03.8]} 32... Qxb1 {[%clk 0:00:11.9]} 33. Qxf7+ {[%clk 0:00:03.3]}
33... Rc7 {[%clk 0:00:11.1]} 34. Qd5+ {[%clk 0:00:03.3]} 34... Kb8 {[%clk
0:00:11.2]} 35. Qd8+ {[%clk 0:00:02.4]} 35... Kb7 {[%clk 0:00:09.8]} 36. Qd5+
{[%clk 0:00:02.5]} 36... Rc6 {[%clk 0:00:08.2]} 37. Qd7+ {[%clk 0:00:02.7]}
37... Kb8 {[%clk 0:00:08.1]} 38. Qd8+ {[%clk 0:00:02.4]} 38... Ka7 {[%clk
0:00:07.3]} 39. Rxa3+ {[%clk 0:00:02.1]} 39... Kb7 {[%clk 0:00:07.9]} 40. Qxa8+
{[%clk 0:00:02]} 40... Kc7 {[%clk 0:00:08]} 41. Ra7# {[%clk 0:00:02.7]} 1-0

[Event "Late-Titled-Tuesday-Blitz-February-27-2024"]
[Site "Chess.com"]
[Date "2024.02.27"]
[Round "3"]
[White "chessydotcom"]
[Black "jaskol95"]
[Result "0-1"]
[WhiteElo "2262"]
[BlackElo "2553"]
[TimeControl "180+1"]
[EndTime "14:29:14 PST"]
[Termination "jaskol95 won by resignation"]

1. e4 {[%clk 0:03:00.9]} 1... e6 {[%clk 0:03:00.9]} 2. d4 {[%clk 0:03:00.8]}
2... d5 {[%clk 0:03:01.5]} 3. e5 {[%clk 0:03:01.4]} 3... c5 {[%clk 0:03:01.2]}
4. c3 {[%clk 0:03:01.5]} 4... Qb6 {[%clk 0:02:56.4]} 5. Nf3 {[%clk 0:03:01.4]}
5... Bd7 {[%clk 0:02:56.4]} 6. Bd3 {[%clk 0:03:01.9]} 6... Bb5 {[%clk
0:02:56.1]} 7. O-O {[%clk 0:03:01.1]} 7... Nc6 {[%clk 0:02:53.2]} 8. Bxb5 {[%clk
0:02:59.3]} 8... Qxb5 {[%clk 0:02:52.5]} 9. a4 {[%clk 0:03:00.2]} 9... Qb6
{[%clk 0:02:46.4]} 10. dxc5 {[%clk 0:03:00.6]} 10... Bxc5 {[%clk 0:02:41.8]} 11.
b4 {[%clk 0:03:00.7]} 11... Be7 {[%clk 0:02:42.4]} 12. Be3 {[%clk 0:02:59.9]}
12... Qc7 {[%clk 0:02:41.3]} 13. Re1 {[%clk 0:02:54.6]} 13... Nh6 {[%clk
0:02:26.2]} 14. Na3 {[%clk 0:02:48.8]} 14... Nf5 {[%clk 0:02:06.6]} 15. Nb5
{[%clk 0:02:45.1]} 15... Qd7 {[%clk 0:02:06.7]} 16. Bf4 {[%clk 0:02:36.1]} 16...
a6 {[%clk 0:02:05.6]} 17. Nbd4 {[%clk 0:02:20.7]} 17... Ncxd4 {[%clk 0:01:58.8]}
18. Nxd4 {[%clk 0:02:21.6]} 18... Nxd4 {[%clk 0:01:59.2]} 19. Qxd4 {[%clk
0:02:21.5]} 19... O-O {[%clk 0:01:59.5]} 20. a5 {[%clk 0:02:11.1]} 20... Rfc8
{[%clk 0:01:54.6]} 21. Rad1 {[%clk 0:02:10.1]} 21... Qb5 {[%clk 0:01:50.8]} 22.
Qe3 {[%clk 0:02:06.3]} 22... Rc4 {[%clk 0:01:46.4]} 23. Qg3 {[%clk 0:02:02.5]}
23... Rac8 {[%clk 0:01:37.4]} 24. Re3 {[%clk 0:01:37]} 24... d4 {[%clk
0:01:20.8]} 25. Bh6 {[%clk 0:01:03.3]} 25... g6 {[%clk 0:01:20.8]} 26. Red3
{[%clk 0:00:39.1]} 26... Rxc3 {[%clk 0:01:07.1]} 27. h3 {[%clk 0:00:25.8]} 27...
Rxd3 {[%clk 0:01:02]} 28. Rxd3 {[%clk 0:00:26.7]} 28... Qxb4 {[%clk 0:00:41.7]}
29. Kh2 {[%clk 0:00:19.3]} 29... Rc3 {[%clk 0:00:31.3]} 30. Qf3 {[%clk
0:00:10.9]} 30... Rxd3 {[%clk 0:00:13]} 31. Qxd3 {[%clk 0:00:11.8]} 31... Qc5
{[%clk 0:00:11.3]} 32. f4 {[%clk 0:00:05.9]} 32... Bf8 {[%clk 0:00:10.6]} 33.
Bg5 {[%clk 0:00:05.5]} 33... Qc3 {[%clk 0:00:07.4]} 34. Qd1 {[%clk 0:00:05.2]}
34... d3 {[%clk 0:00:07.6]} 35. h4 {[%clk 0:00:04.2]} 35... Qc2 {[%clk
0:00:07.7]} 36. Qxc2 {[%clk 0:00:03.2]} 36... dxc2 {[%clk 0:00:08.1]} 37. f5
{[%clk 0:00:04.1]} 37... exf5 {[%clk 0:00:08.7]} 38. Bc1 {[%clk 0:00:03.9]}
38... Bb4 {[%clk 0:00:09.1]} 39. Kg3 {[%clk 0:00:04.3]} 39... Bxa5 {[%clk
0:00:09.4]} 40. Kf4 {[%clk 0:00:04.7]} 40... Bc3 {[%clk 0:00:09.7]} 41. Ke3
{[%clk 0:00:05.2]} 41... Bxe5 {[%clk 0:00:09.9]} 42. Kd3 {[%clk 0:00:05.5]}
42... Bg3 {[%clk 0:00:09.9]} 43. Kxc2 {[%clk 0:00:03.8]} 43... Bxh4 {[%clk
0:00:10.4]} 0-1

[Event "Late-Titled-Tuesday-Blitz-February-27-2024"]
[Site "Chess.com"]
[Date "2024.02.27"]
[Round "3"]
[White "ArtemDyachuk"]
[Black "BogdanDeac"]
[Result "1-0"]
[WhiteElo "2694"]
[BlackElo "2949"]
[TimeControl "180+1"]
[EndTime "14:29:15 PST"]
[Termination "ArtemDyachuk won on time"]

1. d4 {[%clk 0:02:57.9]} 1... Nf6 {[%clk 0:02:59.8]} 2. Nf3 {[%clk 0:02:56.2]}
2... g6 {[%clk 0:02:59.9]} 3. Bf4 {[%clk 0:02:55.6]} 3... d6 {[%clk 0:02:56.8]}
4. e3 {[%clk 0:02:55.6]} 4... Nh5 {[%clk 0:02:56.9]} 5. Bg5 {[%clk 0:02:51.8]}
5... h6 {[%clk 0:02:57.2]} 6. Bh4 {[%clk 0:02:52.1]} 6... g5 {[%clk 0:02:57.8]}
7. Bg3 {[%clk 0:02:52.7]} 7... Nxg3 {[%clk 0:02:56.4]} 8. hxg3 {[%clk
0:02:53.6]} 8... Bg7 {[%clk 0:02:56.7]} 9. Bd3 {[%clk 0:02:53.7]} 9... b6 {[%clk
0:02:53]} 10. c3 {[%clk 0:02:52.3]} 10... Bb7 {[%clk 0:02:52.9]} 11. Nbd2 {[%clk
0:02:51.8]} 11... e6 {[%clk 0:02:53.1]} 12. Qc2 {[%clk 0:02:47.2]} 12... Nd7
{[%clk 0:02:52.5]} 13. O-O-O {[%clk 0:02:43.5]} 13... a6 {[%clk 0:02:52.4]} 14.
Kb1 {[%clk 0:02:31.1]} 14... c5 {[%clk 0:02:49.6]} 15. Nc4 {[%clk 0:02:26.4]}
15... Qc7 {[%clk 0:02:46.2]} 16. dxc5 {[%clk 0:02:25.5]} 16... Qxc5 {[%clk
0:01:28]} 17. Nfd2 {[%clk 0:01:34.4]} 17... d5 {[%clk 0:01:19]} 18. Nb3 {[%clk
0:01:25.9]} 18... Qc7 {[%clk 0:01:16.6]} 19. Ncd2 {[%clk 0:01:24.9]} 19... O-O-O
{[%clk 0:01:02.8]} 20. e4 {[%clk 0:01:23.5]} 20... Ne5 {[%clk 0:00:58.8]} 21.
Be2 {[%clk 0:01:18.5]} 21... dxe4 {[%clk 0:00:58.6]} 22. Nxe4 {[%clk 0:01:19.4]}
22... f5 {[%clk 0:00:56.2]} 23. Ned2 {[%clk 0:01:16.3]} 23... Rhe8 {[%clk
0:00:39.1]} 24. Rhe1 {[%clk 0:01:10.3]} 24... Kb8 {[%clk 0:00:36.4]} 25. Nd4
{[%clk 0:01:10.1]} 25... g4 {[%clk 0:00:33.1]} 26. f3 {[%clk 0:00:50.6]} 26...
h5 {[%clk 0:00:32.7]} 27. Qa4 {[%clk 0:00:49.4]} 27... b5 {[%clk 0:00:23]} 28.
Qb3 {[%clk 0:00:41.2]} 28... Rd6 {[%clk 0:00:20]} 29. Bxb5 {[%clk 0:00:35]}
29... Bd5 {[%clk 0:00:03.2]} 30. Bc4+ {[%clk 0:00:25.2]} 30... Rb6 {[%clk
0:00:03.2]} 31. Qa4 {[%clk 0:00:25.2]} 31... Rd8 {[%clk 0:00:02.4]} 32. Bxd5
{[%clk 0:00:22.8]} 32... Rxd5 {[%clk 0:00:03.3]} 33. N2b3 {[%clk 0:00:21.2]}
33... Qc8 {[%clk 0:00:03.4]} 34. f4 {[%clk 0:00:16.8]} 34... Nc4 {[%clk
0:00:03.5]} 35. Re2 {[%clk 0:00:10.6]} 35... Ka7 {[%clk 0:00:03.4]} 36. Rde1
{[%clk 0:00:09.1]} 36... Bxd4 {[%clk 0:00:03.6]} 37. Nxd4 {[%clk 0:00:09.1]}
37... Nd6 {[%clk 0:00:02.4]} 38. Rxe6 {[%clk 0:00:08]} 38... Qxc3 {[%clk
0:00:02.5]} 39. Re7+ {[%clk 0:00:07]} 39... Nb7 {[%clk 0:00:02.9]} 40. Nb3
{[%clk 0:00:02.9]} 40... Qd3+ {[%clk 0:00:02]} 41. Kc1 {[%clk 0:00:03.4]} 1-0

[Event "Late-Titled-Tuesday-Blitz-February-27-2024"]
[Site "Chess.com"]
[Date "2024.02.27"]
[Round "3"]
[White "aistrel"]
[Black "GoltsevDmitry2000"]
[Result "0-1"]
[WhiteElo "2547"]
[BlackElo "2765"]
[TimeControl "180+1"]
[EndTime "14:29:16 PST"]
[Termination "GoltsevDmitry2000 won by checkmate"]

1. d4 {[%clk 0:03:00.9]} 1... e6 {[%clk 0:02:58.5]} 2. e4 {[%clk 0:02:59.9]}
2... d5 {[%clk 0:02:58.7]} 3. Nd2 {[%clk 0:03:00]} 3... c5 {[%clk 0:02:58.6]} 4.
exd5 {[%clk 0:02:58.2]} 4... exd5 {[%clk 0:02:59.5]} 5. Ngf3 {[%clk 0:02:58]}
5... Nf6 {[%clk 0:03:00]} 6. Bb5+ {[%clk 0:02:56.1]} 6... Nc6 {[%clk 0:02:59.1]}
7. O-O {[%clk 0:02:55.7]} 7... Be7 {[%clk 0:02:59.1]} 8. dxc5 {[%clk 0:02:55.6]}
8... Bxc5 {[%clk 0:03:00]} 9. Re1+ {[%clk 0:02:55.4]} 9... Be6 {[%clk 0:03:00]}
10. Bxc6+ {[%clk 0:02:31.5]} 10... bxc6 {[%clk 0:02:59.6]} 11. Ng5 {[%clk
0:02:32.4]} 11... O-O {[%clk 0:02:59.4]} 12. Nb3 {[%clk 0:02:03.5]} 12... Bb6
{[%clk 0:02:45.6]} 13. Nxe6 {[%clk 0:01:53.3]} 13... fxe6 {[%clk 0:02:45.1]} 14.
Be3 {[%clk 0:01:54.1]} 14... Ne4 {[%clk 0:02:41.9]} 15. f3 {[%clk 0:01:51.2]}
15... Ng5 {[%clk 0:01:19.3]} 16. Bxb6 {[%clk 0:01:31.9]} 16... Qxb6+ {[%clk
0:01:18.8]} 17. Qd4 {[%clk 0:01:31.6]} 17... Qc7 {[%clk 0:01:18.8]} 18. Qe5
{[%clk 0:01:22.5]} 18... Qb6+ {[%clk 0:00:58]} 19. Kh1 {[%clk 0:01:22.3]} 19...
Rf5 {[%clk 0:00:54.6]} 20. Qd4 {[%clk 0:01:17]} 20... Qc7 {[%clk 0:00:52.8]} 21.
h4 {[%clk 0:01:03.9]} 21... Qg3 {[%clk 0:00:36.4]} 22. hxg5 {[%clk 0:00:36.1]}
22... Rxg5 {[%clk 0:00:35.8]} 23. Re2 {[%clk 0:00:36.1]} 23... Rf8 {[%clk
0:00:35.2]} 24. Qf2 {[%clk 0:00:18]} 24... Rh5+ {[%clk 0:00:24.9]} 25. Kg1
{[%clk 0:00:18.6]} 25... Qh2+ {[%clk 0:00:23.1]} 26. Kf1 {[%clk 0:00:19]} 26...
Rg5 {[%clk 0:00:19.1]} 27. Re3 {[%clk 0:00:11.2]} 27... e5 {[%clk 0:00:15.2]}
28. Qg1 {[%clk 0:00:11.6]} 28... Qh4 {[%clk 0:00:13.4]} 29. Ke2 {[%clk
0:00:11.9]} 29... e4 {[%clk 0:00:11.9]} 30. Rf1 {[%clk 0:00:10.5]} 30... Qh5
{[%clk 0:00:11.4]} 31. Kd2 {[%clk 0:00:09.8]} 31... Qg6 {[%clk 0:00:11.9]} 32.
fxe4 {[%clk 0:00:09.3]} 32... Rxg2+ {[%clk 0:00:10.7]} 33. Re2 {[%clk
0:00:05.7]} 33... Rxg1 {[%clk 0:00:10.5]} 34. Rxf8+ {[%clk 0:00:05.7]} 34...
Kxf8 {[%clk 0:00:10.9]} 35. exd5 {[%clk 0:00:06.6]} 35... cxd5 {[%clk
0:00:09.9]} 36. Nd4 {[%clk 0:00:07.5]} 36... Rg2 {[%clk 0:00:09]} 37. c3 {[%clk
0:00:08.4]} 37... Rxe2+ {[%clk 0:00:08.6]} 38. Kxe2 {[%clk 0:00:09.3]} 38... Qb1
{[%clk 0:00:08.6]} 39. b4 {[%clk 0:00:08.4]} 39... Qxa2+ {[%clk 0:00:08.8]} 40.
Kd3 {[%clk 0:00:09.3]} 40... Qc4+ {[%clk 0:00:09.3]} 41. Ke3 {[%clk 0:00:09.5]}
41... h5 {[%clk 0:00:09.8]} 42. Ne6+ {[%clk 0:00:09.6]} 42... Kg8 {[%clk
0:00:10.3]} 43. Nc5 {[%clk 0:00:10.5]} 43... h4 {[%clk 0:00:10.4]} 44. Nd7
{[%clk 0:00:09.3]} 44... h3 {[%clk 0:00:10]} 45. Ne5 {[%clk 0:00:10.2]} 45...
Qxc3+ {[%clk 0:00:10.2]} 46. Kf4 {[%clk 0:00:10.8]} 46... Qd4+ {[%clk
0:00:10.2]} 47. Kf5 {[%clk 0:00:10.9]} 47... Qe4+ {[%clk 0:00:11.1]} 48. Ke6
{[%clk 0:00:11.8]} 48... h2 {[%clk 0:00:11.4]} 49. Kd6 {[%clk 0:00:11.9]} 49...
h1=Q {[%clk 0:00:11.7]} 50. Nc6 {[%clk 0:00:12.6]} 50... Qh2+ {[%clk 0:00:11.8]}
51. Kc5 {[%clk 0:00:13.5]} 51... Qc4# {[%clk 0:00:11.7]} 0-1